bitfinex/quotes_ETHUSD_20241006
["timestamp","ask_amount","ask_price","bid_price","bid_amount"]
[1728222632759,3.28616,2434.5,2434.4,35.0]
[1728222632966,6.57186,2434.7,2434.4,35.0]
[1728222633248,3.28591,2434.7,2434.5,0.7716]
[1728222633427,3.63805771,2434.8,2434.7,0.7716]
[1728222633815,3.63805771,2434.8,2434.7,35.0]
[1728222634138,3.63805771,2434.8,2434.7,35.7716]
[1728222634374,3.63805771,2434.8,2434.7,39.34876]
[1728222634547,6.92374771,2434.8,2434.7,39.34876]
[1728222636075,3.63805771,2434.8,2434.7,39.34876]
[1728222636233,6.92374771,2434.8,2434.7,39.34876]
[1728222638380,3.63805771,2434.8,2434.7,39.34876]
[1728222638576,6.92374771,2434.8,2434.7,39.34876]
[1728222650711,0.63805771,2434.8,2434.7,39.34876]
[1728222652533,3.28536,2435.1,2434.8,0.7623]
[1728222652745,3.28536,2435.1,2435.0,0.7623]
[1728222653154,6.57038,2435.2,2435.0,0.7623]
[1728222653449,6.57043,2435.2,2435.1,35.0]
[1728222653603,3.28515,2435.2,2435.1,35.0]
[1728222653811,3.28508,2435.3,2435.1,35.0]
[1728222654036,3.28508,2435.3,2435.2,4.33853]
[1728222654405,3.28508,2435.3,2435.2,0.7623]
[1728222654603,3.28508,2435.3,2435.2,35.7623]
[1728222655642,2.86869,2435.3,2435.2,35.7623]
[1728222658427,2.86869,2435.3,2435.2,35.0]
[1728222663253,0.3112,2435.7,2435.2,35.0]
[1728222663254,0.64297847,2436.0,2435.5,0.765]
[1728222663422,3.5952,2436.1,2435.6,0.81519847]
[1728222663423,6.56801,2436.1,2435.6,0.81519847]
[1728222663624,6.56801,2436.1,2435.6,0.765]
[1728222663625,3.28421,2435.9,2435.6,0.765]
[1728222664029,3.28421,2435.9,2435.8,35.0]
[1728222665030,3.28408,2436.0,2435.8,35.0]
[1728222665521,3.28408,2436.0,2435.6,0.765]
[1728222665721,3.28408,2436.0,2435.6,1.169985]
[1728222665915,6.28408,2436.0,2435.9,35.0]
[1728222666154,3.0,2436.0,2435.9,35.0]
[1728222666320,3.0,2436.0,2435.9,35.765]
[1728222666721,3.0,2436.2,2435.9,35.765]
[1728222666957,6.28383,2436.2,2435.9,35.765]
[1728222667261,6.28383,2436.2,2435.9,0.765]
[1728222667754,6.28383,2436.2,2436.1,35.0]
[1728222667961,6.2838,2436.2,2436.1,35.0]
[1728222671490,3.0,2436.2,2436.1,35.0]
[1728222674094,2.5847,2436.2,2436.1,35.0]
[1728222674400,2.5847,2436.2,2436.1,38.5765]
[1728222675276,3.28348,2436.5,2436.2,0.765]
[1728222675475,3.28348,2436.5,2436.3,0.95077245]
[1728222675675,3.28348,2436.5,2436.2,0.765]
[1728222676280,3.0,2436.4,2436.2,0.765]
[1728222676691,6.28354,2436.4,2436.2,0.765]
[1728222677394,3.0,2436.4,2436.2,0.765]
[1728222679700,3.0,2436.6,2436.2,3.31593866]
[1728222680005,3.0,2436.6,2436.3,4.86642025]
[1728222680161,3.0,2436.6,2436.4,0.03215602]
[1728222680559,3.0,2436.6,2436.5,35.0]
[1728222680905,3.0,2436.6,2436.5,38.57715]
[1728222682289,6.28326,2436.6,2436.5,35.0]
[1728222685203,6.59446,2436.6,2436.5,35.0]
[1728222689169,6.28326,2436.6,2436.5,35.0]
[1728222690168,6.59446,2436.6,2436.5,35.0]
[1728222690375,10.00426659,2436.6,2436.5,35.0]
[1728222695196,6.59446,2436.6,2436.5,35.0]
[1728222695411,6.28326,2436.6,2436.5,35.0]
[1728222698527,5.69108675,2436.6,2436.5,35.0]
[1728222708346,5.69108675,2436.6,2436.5,35.773]
[1728222710144,5.69108675,2436.6,2436.5,35.0]
[1728222713215,5.69108675,2436.6,2436.5,35.773]
[1728222715743,5.69108675,2436.6,2436.5,35.0]
[1728222718117,6.00228675,2436.6,2436.5,35.0]
[1728222721723,5.69108675,2436.6,2436.5,35.0]
[1728222724713,5.69108675,2436.6,2436.5,35.7523]
[1728222728658,5.07617675,2436.6,2436.5,35.7523]
[1728222731666,3.28326,2436.6,2436.5,35.7523]
[1728222733855,6.28326,2436.6,2436.5,35.7523]
[1728222735742,6.28326,2436.6,2436.5,35.0]
[1728222736281,7.31975746,2436.6,2436.5,35.0]
[1728222736925,7.63095746,2436.6,2436.5,35.0]
[1728222740255,55.78630646,2436.6,2436.5,35.0]
[1728222741016,49.98417446,2436.6,2436.5,35.0]
[1728222743477,7.63095746,2436.6,2436.5,35.0]
[1728222749544,3.0,2436.5,2436.1,0.7703]
[1728222749708,7.85728998,2436.2,2436.1,0.7703]
[1728222750005,7.85728998,2436.2,2436.1,35.7703]
[1728222751200,3.0,2436.2,2436.1,37.19904694]
[1728222751364,6.2838,2436.2,2436.1,37.19904694]
[1728222752386,3.0,2436.2,2436.1,37.19904694]
[1728222753465,6.2838,2436.2,2436.1,36.69904694]
[1728222756068,3.2838,2436.2,2436.1,36.69904694]
[1728222761788,4.85728998,2436.2,2436.1,35.0]
[1728222762428,7.85728998,2436.2,2436.1,35.0]
[1728222765987,8.64748998,2436.2,2436.1,35.0]
[1728222769624,3.28461,2435.6,2435.5,0.7601]
[1728222769996,3.28461,2435.6,2435.5,35.7601]
[1728222770187,3.28461,2435.6,2435.5,39.33611]
[1728222784366,3.28461,2435.6,2435.5,35.7601]
[1728222784646,3.28461,2435.6,2435.5,35.0]
[1728222786365,6.56906,2435.7,2435.5,35.0]
[1728222786510,3.28448,2435.7,2435.6,0.7989]
[1728222789884,3.28461,2435.6,2435.5,35.0]
[1728222790524,3.28448,2435.7,2435.5,35.0]
[1728222790926,6.56908,2435.7,2435.5,35.0]
[1728222791126,3.28448,2435.7,2435.5,35.0]
[1728222791362,3.28448,2435.7,2435.5,38.57878]
[1728222791559,6.56908,2435.7,2435.5,38.57878]
[1728222791864,3.28448,2435.7,2435.5,38.57878]
[1728222792357,3.28448,2435.7,2435.6,0.7878]
[1728222808402,3.28448,2435.7,2435.6,1.12739708]
[1728222809903,3.28448,2435.7,2435.6,5.09801479]
[1728222810320,3.28448,2435.7,2435.6,4.75841771]
[1728222810477,3.28448,2435.7,2435.6,1.12745991]
[1728222813411,3.28448,2435.7,2435.6,0.33965991]
[1728222813641,3.28448,2435.7,2435.5,35.0]
[1728222813782,3.28448,2435.7,2435.6,0.33973179]
[1728222814323,3.28448,2435.7,2435.5,35.0]
[1728222814324,3.28461,2435.6,2435.5,35.0]
[1728222814504,3.28461,2435.6,2435.5,35.33974351]
[1728222816881,3.28461,2435.6,2435.5,35.0]
[1728222817085,3.28461,2435.6,2435.5,35.33975383]
[1728222820974,3.28461,2435.6,2435.5,39.67862921]
[1728222822433,3.28461,2435.6,2435.5,36.14465383]
[1728222823555,3.28461,2435.6,2435.5,36.1445786]
[1728222824244,3.28461,2435.6,2435.5,35.3396786]
[1728222830361,3.28461,2435.6,2435.5,35.33970009]
[1728222830715,3.28461,2435.6,2435.5,35.33969761]
[1728222833463,3.28461,2435.6,2435.5,35.0]
[1728222833659,3.28461,2435.6,2435.5,35.33971436]
[1728222842381,6.28461,2435.6,2435.5,35.33971436]
[1728222842581,6.28461,2435.6,2435.5,35.0]
[1728222844273,6.35604891,2435.6,2435.5,35.0]
[1728222845172,7.12984891,2435.6,2435.5,35.0]
[1728222849002,55.02973691,2435.6,2435.5,29.39935432]
[1728222849146,3.28609,2434.5,2434.4,0.8021]
[1728222849349,7.85957998,2434.5,2434.4,0.8021]
[1728222849575,3.28643,2434.3,2434.0,0.8021]
[1728222849995,3.28643,2434.3,2434.2,35.0]
[1728222850298,4.85991998,2434.3,2434.2,35.0]
[1728222850450,7.85991998,2434.3,2434.2,35.0]
[1728222855088,6.28643,2434.3,2434.2,35.0]
[1728222855300,6.28643,2434.3,2434.2,35.8021]
[1728222864497,6.28643,2434.3,2434.2,35.0]
[1728222875351,6.28643,2434.3,2434.2,35.7799]
[1728222900801,6.28643,2434.3,2434.2,35.0]
[1728222902770,6.28643,2434.3,2434.2,35.34039889]
[1728222903183,6.28643,2434.3,2434.2,35.0]
[1728222905195,6.28643,2434.3,2434.2,35.34043999]
[1728222906598,6.28643,2434.3,2434.2,35.0]
[1728222908603,6.28643,2434.3,2434.2,35.34042289]
[1728222908764,6.28643,2434.3,2434.2,35.0]
[1728222910039,7.08193,2434.3,2434.2,35.0]
[1728222910221,8.65541998,2434.3,2434.2,35.00802139]
[1728222911076,7.08193,2434.3,2434.2,35.00802139]
[1728222913215,6.28643,2434.3,2434.2,35.00802139]
[1728222913990,6.28643,2434.3,2434.2,0.00802139]
[1728222914612,6.28643,2434.3,2434.2,35.00802139]
[1728222942362,6.28643,2434.3,2434.2,37.86504126]
[1728222942363,3.28643,2434.3,2434.2,37.86504126]
[1728222942650,3.28643,2434.3,2434.2,38.61041801]
[1728222944862,3.28643,2434.3,2434.2,36.53189814]
[1728222950262,3.28643,2434.3,2434.2,36.12675097]
[1728222950567,6.57254,2434.4,2434.2,36.12675097]
[1728222950769,9.57254,2434.4,2434.3,0.00802139]
[1728222951068,6.28624,2434.4,2434.3,0.00802139]
[1728222951445,6.28624,2434.4,2434.3,35.00802139]
[1728222955056,7.85972998,2434.4,2434.3,35.00802139]
[1728222955273,8.64492998,2434.4,2434.3,35.00802139]
[1728222961574,8.64492998,2434.4,2434.3,0.00802139]
[1728222961963,8.71641036,2434.4,2434.3,0.00802139]
[1728222962169,8.71641036,2434.4,2434.3,35.00802139]
[1728222962390,8.64492998,2434.4,2434.3,35.00802139]
[1728222963948,50.06372398,2434.4,2434.3,35.00802139]
[1728222964347,46.58531498,2434.4,2434.3,35.00802139]
[1728222965182,8.64492998,2434.4,2434.3,35.00802139]
[1728222965491,11.9570135,2434.4,2434.3,35.00802139]
[1728222967055,11.9570135,2434.4,2434.3,0.00802139]
[1728222967678,11.9570135,2434.4,2434.3,35.00802139]
[1728222969358,54.4711405,2434.4,2434.3,35.00802139]
[1728222973368,54.4711405,2434.4,2434.3,35.0]
[1728222973711,54.4711405,2434.4,2434.3,35.00802139]
[1728222974085,3.28744,2433.5,2433.4,0.7969]
[1728222974287,6.28744,2433.5,2433.4,0.7969]
[1728222974488,6.28744,2433.5,2433.4,35.7969]
[1728222976688,7.86092998,2433.5,2433.4,35.80492139]
[1728222979916,8.66802998,2433.5,2433.4,35.00802139]
[1728222980831,8.66802998,2433.5,2433.4,35.00710247]
[1728222983842,62.97944898,2433.5,2433.4,35.00710247]
[1728222984003,63.52944898,2433.5,2433.4,35.00710247]
[1728222985756,63.60096898,2433.5,2433.4,35.00710247]
[1728222988031,9.28954998,2433.5,2433.4,35.00710247]
[1728222988220,70.67655498,2433.5,2433.4,35.00710247]
[1728222990735,70.28267198,2433.5,2433.4,35.00710247]
[1728222993858,50.873714,2433.5,2433.4,35.00710247]
[1728222994032,29.31084198,2433.5,2433.4,35.00710247]
[1728222996049,6.28744,2433.5,2433.4,35.00710247]
[1728222996252,6.28744,2433.5,2433.4,35.77060247]
[1728222996756,3.28732,2433.6,2433.4,35.77060247]
[1728222996923,6.57427,2433.8,2433.4,36.80116507]
[1728222997120,6.57427,2433.8,2433.5,0.7635]
[1728222997321,3.28723,2433.7,2433.5,0.7635]
[1728222998321,6.28731,2433.6,2433.5,0.7635]
[1728222999132,3.0,2433.7,2433.5,0.7635]
[1728222999535,6.28725,2433.7,2433.5,0.7635]
[1728223000055,3.2871,2433.8,2433.5,0.7635]
[1728223000056,6.28731,2433.6,2433.5,0.7635]
[1728223003966,6.28731,2433.6,2433.4,35.00710247]
[1728223003967,6.28744,2433.5,2433.4,35.00710247]
[1728223006102,7.09864,2433.5,2433.4,35.00710247]
[1728223006383,49.657069,2433.5,2433.4,35.00710247]
[1728223006963,38.634872,2433.5,2433.4,0.00802139]
[1728223007357,38.634872,2433.5,2433.4,35.00802139]
[1728223008253,29.991501,2433.5,2433.4,35.00802139]
[1728223009992,30.541501,2433.5,2433.4,35.00802139]
[1728223010295,30.541501,2433.5,2433.4,0.00802139]
[1728223011723,7.64864,2433.5,2433.4,0.00802139]
[1728223011988,53.836077,2433.5,2433.4,0.00802139]
[1728223014087,53.836077,2433.5,2433.4,35.00802139]
[1728223015050,53.836077,2433.5,2433.4,0.00802139]
[1728223015251,52.766702,2433.5,2433.4,0.00802139]
[1728223016899,50.828404,2433.5,2433.4,0.00802139]
[1728223019800,50.89993435,2433.5,2433.4,0.00802139]
[1728223020870,51.31123435,2433.5,2433.4,0.00802139]
[1728223024604,51.95494558,2433.5,2433.4,0.00802139]
[1728223025812,70.16218658,2433.5,2433.4,0.00802139]
[1728223030167,70.64563568,2433.5,2433.4,0.00802139]
[1728223030372,71.0740718,2433.5,2433.4,0.00802139]
[1728223032792,70.5906227,2433.5,2433.4,0.00802139]
[1728223033378,65.7004967,2433.5,2433.4,0.00802139]
[1728223033587,32.01573268,2433.5,2433.4,0.00802139]
[1728223033790,30.77609656,2433.5,2433.4,0.00802139]
[1728223033995,27.77609656,2433.5,2433.4,0.00802139]
[1728223034895,28.32609656,2433.5,2433.4,0.00802139]
[1728223035095,31.32609656,2433.5,2433.4,0.00802139]
[1728223036393,20.19206358,2433.5,2433.4,0.00802139]
[1728223036733,21.76555356,2433.5,2433.4,0.00802139]
[1728223037831,18.67491858,2433.5,2433.4,35.77672139]
[1728223038041,3.93115123,2433.5,2433.4,35.77672139]
[1728223038199,3.93115123,2433.5,2433.4,37.59618931]
[1728223038737,3.93115123,2433.5,2433.4,35.77672139]
[1728223039303,6.93115123,2433.5,2433.4,35.77672139]
[1728223039694,6.28744,2433.5,2433.4,35.77672139]
[1728223043609,7.86092998,2433.5,2433.4,35.77672139]
[1728223046862,6.28744,2433.5,2433.4,35.77672139]
[1728223047569,3.0,2433.5,2433.4,39.35439353]
[1728223048056,6.28744,2433.5,2433.4,39.35439353]
[1728223049765,3.0,2433.5,2433.4,35.77672139]
[1728223050060,6.28744,2433.5,2433.4,35.77672139]
[1728223050234,7.86092998,2433.5,2433.4,35.77672139]
[1728223054943,7.86092998,2433.5,2433.4,0.77672139]
[1728223055445,7.86092998,2433.5,2433.4,35.77672139]
[1728223056732,47.45040298,2433.5,2433.4,35.00802139]
[1728223057059,40.16671898,2433.5,2433.4,35.00802139]
[1728223057741,35.54089398,2433.5,2433.4,35.00802139]
[1728223058542,35.61239832,2433.5,2433.4,35.00802139]
[1728223059562,35.54089398,2433.5,2433.4,35.00802139]
[1728223059728,15.97992798,2433.5,2433.4,0.00802139]
[1728223060172,15.97992798,2433.5,2433.4,35.00802139]
[1728223060384,5.87079298,2434.2,2433.5,0.7559]
[1728223060609,3.28659,2434.2,2433.5,0.7559]
[1728223061875,3.0,2434.1,2433.5,0.7559]
[1728223062167,3.28663,2434.1,2433.5,0.7559]
[1728223062466,3.0,2434.0,2433.7,0.7559]
[1728223066842,6.28677,2434.0,2433.7,0.7559]
[1728223067651,3.0,2433.8,2433.7,0.7559]
[1728223068279,6.28704,2433.8,2433.7,0.7559]
[1728223071156,3.0,2433.8,2433.7,0.7559]
[1728223080367,6.28704,2433.8,2433.7,0.7559]
[1728223087218,3.0,2433.8,2433.7,0.7559]
[1728223087500,6.28704,2433.8,2433.7,0.7559]
[1728223095089,3.0,2433.8,2433.7,0.7559]
[1728223096424,3.28692,2433.9,2433.7,0.7559]
[1728223096425,6.28684,2434.0,2433.7,0.7559]
[1728223097380,3.0,2433.8,2433.7,0.7559]
[1728223097703,3.0,2433.8,2433.7,1.05731571]
[1728223099019,6.28704,2433.8,2433.7,1.05731571]
[1728223099215,6.28704,2433.8,2433.7,0.8158]
[1728223115435,3.28726,2433.7,2433.5,0.8047]
[1728223115644,3.0,2433.6,2433.5,0.8047]
[1728223115813,3.0,2433.6,2433.5,1.14488098]
[1728223116198,3.0,2433.6,2433.5,0.8047]
[1728223116398,3.0,2433.6,2433.5,1.14488014]
[1728223119347,3.0,2433.6,2433.5,2.65336623]
[1728223119638,3.0,2433.6,2433.5,2.6533908]
[1728223120009,3.0,2433.6,2433.5,2.31318609]
[1728223120218,3.0,2433.6,2433.5,2.65339134]
[1728223122948,3.0,2433.6,2433.5,2.31318609]
[1728223123444,3.0,2433.6,2433.5,2.65340056]
[1728223126332,3.0,2433.6,2433.5,2.31318609]
[1728223126535,3.0,2433.6,2433.5,2.65340404]
[1728223129225,3.0,2433.6,2433.5,1.14491795]
[1728223129927,3.0,2433.6,2433.4,35.00802139]
[1728223130130,3.0,2433.6,2433.5,0.34025355]
[1728223136876,3.0,2433.6,2433.4,35.00802139]
[1728223137018,3.0,2433.6,2433.5,0.34023325]
[1728223142393,3.0,2433.6,2433.5,0.34023478]
[1728223147926,6.28731,2433.6,2433.5,0.34023478]
[1728223152626,6.28731,2433.6,2433.5,0.34025907]
[1728223152812,3.28744,2433.5,2433.4,35.00802139]
[1728223153018,3.28744,2433.5,2433.4,35.348329]
[1728223157544,6.28744,2433.5,2433.4,35.348329]
[1728223157915,7.04564,2433.5,2433.4,35.348329]
[1728223159072,7.04564,2433.5,2433.4,35.00802139]
[1728223185241,6.28744,2433.5,2433.4,35.00802139]
[1728223186268,6.28744,2433.5,2433.4,0.00802139]
[1728223186625,6.28744,2433.5,2433.4,35.00802139]
[1728223188945,7.09864,2433.5,2433.4,35.00802139]
[1728223201874,6.28744,2433.5,2433.4,35.00802139]
[1728223202764,6.28744,2433.5,2433.4,35.76932139]
[1728223208598,6.28744,2433.5,2433.4,35.00802139]
[1728223212627,3.28744,2433.5,2433.4,39.40774353]
[1728223212795,3.28724,2433.7,2433.5,0.8172]
[1728223213119,3.28724,2433.7,2433.6,0.8172]
[1728223214093,6.28724,2433.7,2433.6,0.8172]
[1728223216512,6.28724,2433.7,2433.6,35.8172]
[1728223222727,7.86432669,2433.7,2433.6,35.0]
[1728223223403,7.86432669,2433.7,2433.6,35.00802139]
[1728223224706,6.28724,2433.7,2433.6,35.00802139]
[1728223230164,3.0,2433.7,2433.6,37.29038486]
[1728223230974,6.28717,2433.7,2433.6,37.29038486]
[1728223234247,6.28717,2433.7,2433.6,35.81692139]
[1728223235540,6.28717,2433.7,2433.6,35.00802139]
[1728223245893,14.49918269,2433.7,2433.6,35.00802139]
[1728223246206,13.68798269,2433.7,2433.6,35.00802139]
[1728223246371,14.49918269,2433.7,2433.6,35.00802139]
[1728223246803,15.04918269,2433.7,2433.6,35.00802139]
[1728223248984,15.04918269,2433.7,2433.6,0.00802139]
[1728223249507,15.04918269,2433.7,2433.6,35.00802139]
[1728223252449,15.04918269,2433.7,2433.6,0.00802139]
[1728223252963,15.04918269,2433.7,2433.6,35.00802139]
[1728223253860,15.04918269,2433.7,2433.6,0.00802139]
[1728223254021,15.46048269,2433.7,2433.6,0.00802139]
[1728223254735,9.63675669,2433.7,2433.6,0.00802139]
[1728223254957,71.02376169,2433.7,2433.6,0.00802139]
[1728223257337,71.09528305,2433.7,2433.6,0.00802139]
[1728223258478,71.02376169,2433.7,2433.6,0.00802139]
[1728223259573,3.9613,2433.6,2433.4,0.00802139]
[1728223259744,3.9613,2433.6,2432.7,35.0]
[1728223259745,7.86547669,2432.8,2432.7,35.0]
[1728223259951,27.30836169,2432.8,2432.7,35.0]
[1728223260137,28.17071069,2432.8,2432.7,35.0]
[1728223261389,28.95131069,2432.8,2432.7,35.0]
[1728223261570,29.02284069,2432.8,2432.7,35.0]
[1728223261943,29.57284069,2432.8,2432.7,35.0]
[1728223265142,27.995754,2432.8,2432.7,35.0]
[1728223265344,26.62949369,2432.8,2432.7,35.0]
[1728223266363,25.052407,2432.8,2432.7,35.0]
[1728223266682,24.28564869,2432.8,2432.7,35.0]
[1728223267360,24.21411869,2432.8,2432.7,35.0]
[1728223267563,22.087032,2432.8,2432.7,35.0]
[1728223267886,15.33294669,2432.8,2432.7,35.0]
[1728223268183,7.86547669,2432.8,2432.7,35.0]
[1728223268487,3.28879,2432.5,2432.4,0.7747]
[1728223268867,6.28879,2432.5,2432.4,35.7747]
[1728223273090,6.28879,2432.5,2432.4,0.7747]
[1728223273694,6.28879,2432.5,2432.4,35.7747]
[1728223278414,6.28879,2432.5,2432.4,35.0]
[1728223279217,7.86587669,2432.5,2432.4,35.0]
[1728223280601,8.65997669,2432.5,2432.4,35.0]
[1728223283880,8.65997669,2432.5,2431.9,0.7644]
[1728223283881,3.29001,2431.6,2431.5,0.7644]
[1728223284188,6.29001,2431.6,2431.5,0.7644]
[1728223284381,3.29087,2431.0,2430.9,0.7644]
[1728223284796,3.2907,2431.1,2430.9,0.7644]
[1728223284994,3.2907,2431.1,2431.0,35.7644]
[1728223284995,6.2907,2431.1,2431.0,35.7644]
[1728223285212,3.0,2431.1,2431.0,37.15834149]
[1728223285720,6.29069,2431.1,2431.0,37.15834149]
[1728223285870,3.0,2431.1,2431.0,37.15834149]
[1728223287477,3.0,2431.3,2431.1,0.7644]
[1728223287705,6.29042,2431.3,2431.2,4.48023415]
[1728223289212,3.0,2431.3,2431.2,4.48023415]
[1728223289373,3.29007,2431.6,2431.3,0.7697]
[1728223289578,3.29007,2431.6,2431.5,35.0]
[1728223290610,6.29007,2431.6,2431.5,35.0]
[1728223295809,57.38380153,2431.6,2431.5,35.0]
[1728223296011,35.97800653,2431.6,2431.5,35.0]
[1728223296416,10.49165953,2431.6,2431.5,35.0]
[1728223296721,26.71454553,2431.6,2431.5,35.0]
[1728223296928,11.04165953,2431.6,2431.5,35.0]
[1728223297219,16.43607653,2431.6,2431.5,35.0]
[1728223300726,14.76249253,2431.6,2431.5,35.0]
[1728223300894,7.61797,2431.6,2431.5,35.0]
[1728223302228,34.70450553,2431.6,2431.5,35.0]
[1728223302411,20.36706553,2431.6,2431.5,35.0]
[1728223303031,13.227862,2431.6,2431.5,35.0]
[1728223303349,11.34397,2431.6,2431.5,35.0]
[1728223304726,6.29007,2431.6,2431.5,35.0]
[1728223306343,33.66274253,2431.6,2431.5,35.0]
[1728223306512,31.81948806,2431.6,2431.5,35.0]
[1728223306925,32.88255069,2431.6,2431.5,35.0]
[1728223308241,33.67445069,2431.6,2431.5,35.0]
[1728223309663,33.7460217,2431.6,2431.5,35.0]
[1728223310913,6.29069,2431.1,2431.0,0.7977]
[1728223311365,6.29069,2431.1,2431.0,35.7977]
[1728223311957,6.29069,2431.1,2431.0,35.0]
[1728223312456,6.84096,2430.9,2430.8,0.1218954]
[1728223312660,43.58651406,2430.9,2430.8,0.1218954]
[1728223312849,35.54831906,2430.9,2430.8,35.1218954]
[1728223313020,30.33981706,2430.9,2430.8,35.1218954]
[1728223313460,24.66353406,2430.9,2430.8,35.1218954]
[1728223314259,24.00679506,2430.9,2430.8,35.1218954]
[1728223314567,25.85308943,2430.9,2430.8,35.1218954]
[1728223314719,15.90556,2430.9,2430.8,35.1218954]
[1728223314959,6.29096,2430.9,2430.8,35.1218954]
[1728223321445,9.71768943,2430.9,2430.8,35.1218954]
[1728223322042,6.29096,2430.9,2430.8,35.1218954]
[1728223327889,3.29096,2430.9,2430.8,35.8906954]
[1728223328041,3.29096,2430.9,2430.8,39.47976494]
[1728223328852,3.29096,2430.9,2430.8,35.8906954]
[1728223329242,6.29096,2430.9,2430.8,35.8906954]
[1728223330847,3.29096,2430.9,2430.8,35.8906954]
[1728223332345,6.29096,2430.9,2430.8,35.8906954]
[1728223337550,6.29096,2430.9,2430.8,35.1218954]
[1728223338351,6.29096,2430.9,2430.8,38.71096494]
[1728223339081,6.29096,2430.9,2430.8,39.51436494]
[1728223340388,6.29096,2430.9,2430.8,35.9252954]
[1728223343198,6.29096,2430.9,2430.8,35.1218954]
[1728223345319,7.87151402,2430.9,2430.8,35.1218954]
[1728223345620,8.63711402,2430.9,2430.8,35.1218954]
[1728223346352,28.64052802,2430.9,2430.8,35.1218954]
[1728223348408,28.20197958,2430.9,2430.8,35.1218954]
[1728223349496,20.19682258,2430.9,2430.8,35.1218954]
[1728223359948,20.19682258,2430.9,2430.8,0.1218954]
[1728223360520,20.70988521,2430.9,2430.8,0.1218954]
[1728223362517,21.12148521,2430.9,2430.8,0.1218954]
[1728223364052,20.70988521,2430.9,2430.8,35.1218954]
[1728223364237,20.19682258,2430.9,2430.8,35.1218954]
[1728223365156,20.70988521,2430.9,2430.8,35.1218954]
[1728223367982,16.770238,2430.9,2430.8,35.1218954]
[1728223368156,20.19682258,2430.9,2430.8,35.1218954]
[1728223368358,16.770238,2430.9,2430.8,35.1218954]
[1728223368559,18.35181322,2430.9,2430.8,35.1218954]
[1728223369160,47.54622822,2430.9,2430.8,35.1218954]
[1728223371055,47.54622822,2430.9,2430.8,0.1218954]
[1728223371691,47.61774787,2430.9,2430.8,35.1218954]
[1728223372805,47.61774787,2430.9,2430.8,35.0666589]
[1728223374536,47.61774787,2430.9,2430.8,0.0666589]
[1728223375107,47.61774787,2430.9,2430.8,35.0666589]
[1728223375501,33.09127887,2430.9,2430.8,35.0666589]
[1728223377686,31.50970365,2430.9,2430.8,35.0666589]
[1728223377962,19.69266822,2430.9,2430.8,35.8248589]
[1728223378132,19.76418619,2430.9,2430.8,35.8248589]
[1728223378331,14.21887619,2430.9,2430.8,35.8248589]
[1728223378531,14.14735822,2430.9,2430.8,35.8248589]
[1728223378971,3.29096,2430.9,2430.8,35.8248589]
[1728223379260,6.29096,2430.9,2430.8,35.8248589]
[1728223380019,3.29096,2430.9,2430.8,35.8248589]
[1728223381230,6.29096,2430.9,2430.8,35.8248589]
[1728223381740,6.29096,2430.9,2430.8,0.8248589]
[1728223382161,6.29096,2430.9,2430.8,35.8248589]
[1728223385492,7.87253522,2430.9,2430.8,35.8248589]
[1728223390393,7.87253522,2430.9,2430.8,35.0666589]
[1728223391063,34.54215622,2430.9,2430.8,35.0666589]
[1728223391710,29.62042122,2430.9,2430.8,35.0666589]
[1728223392568,29.62042122,2430.9,2430.8,35.07468029]
[1728223393788,29.62042122,2430.9,2430.8,0.07468029]
[1728223394291,29.62042122,2430.9,2430.8,35.07468029]
[1728223395476,30.40682122,2430.9,2430.8,35.07468029]
[1728223395684,30.95682122,2430.9,2430.8,35.07468029]
[1728223397994,8.42253522,2430.9,2430.8,35.07468029]
[1728223399494,9.0668516,2430.9,2430.8,35.07468029]
[1728223402938,9.8780516,2430.9,2430.8,35.07468029]
[1728223404631,9.0668516,2430.9,2430.8,35.07468029]
[1728223405221,9.0668516,2430.9,2430.8,0.07468029]
[1728223405688,9.0668516,2430.9,2430.8,35.07468029]
[1728223407199,7.48527638,2430.9,2430.8,35.07468029]
[1728223407397,9.0668516,2430.9,2430.8,35.07468029]
[1728223408635,9.0668516,2430.9,2430.8,0.07468029]
[1728223409011,70.4538566,2430.9,2430.8,0.07468029]
[1728223409335,52.1787226,2430.9,2430.8,35.07468029]
[1728223412302,52.1787226,2430.9,2430.8,0.07468029]
[1728223412504,52.9899226,2430.9,2430.8,0.07468029]
[1728223412768,52.9899226,2430.9,2430.8,35.07468029]
[1728223414232,55.57317264,2430.9,2430.8,35.07468029]
[1728223414431,59.4512106,2430.9,2430.8,35.07468029]
[1728223414838,62.03446064,2430.9,2430.8,35.07468029]
[1728223415462,59.4512106,2430.9,2430.8,35.07468029]
[1728223415669,59.4512106,2430.9,2430.8,0.07468029]
[1728223416328,59.4512106,2430.9,2430.8,35.07468029]
[1728223419172,59.4512106,2430.9,2430.8,0.07468029]
[1728223419695,59.4512106,2430.9,2430.8,35.07468029]
[1728223421371,58.6400106,2430.9,2430.8,35.07468029]
[1728223421595,31.4780846,2430.9,2430.8,35.07468029]
[1728223422146,24.2876626,2430.9,2430.8,35.07468029]
[1728223425073,25.61193944,2430.9,2430.8,35.07468029]
[1728223425939,25.6833974,2430.9,2430.8,35.07468029]
[1728223426435,24.80073944,2430.9,2430.8,35.07468029]
[1728223426642,24.2876626,2430.9,2430.8,35.07468029]
[1728223426847,20.1118516,2430.9,2430.8,35.07468029]
[1728223427241,20.9230516,2430.9,2430.8,0.07468029]
[1728223427440,21.43612844,2430.9,2430.8,0.07468029]
[1728223427752,23.20884178,2430.9,2430.8,0.07468029]
[1728223431386,23.20884178,2430.9,2430.8,35.07468029]
[1728223431879,23.20892641,2430.9,2430.8,35.07468029]
[1728223434486,23.20892641,2430.9,2430.8,0.07468029]
[1728223434983,23.20892641,2430.9,2430.8,35.07468029]
[1728223436182,20.62492844,2430.9,2430.8,35.07468029]
[1728223436684,23.20914108,2430.9,2430.8,35.07468029]
[1728223437180,21.62756586,2430.9,2430.8,35.07468029]
[1728223437479,17.53708844,2430.9,2430.8,35.07468029]
[1728223437883,16.98708844,2430.9,2430.8,0.07468029]
[1728223438389,5.5168516,2430.9,2430.8,35.82688029]